Cogmind - Beta 13 --- EXPLORER MODE // 2024.05.27 @ 10:26:00 Player: Shippujinlai Result: Destroyed by SL-GAJ(R) with Subdweller Machine Gun Performance ------------- Evolutions (0) 0 Regions Visited (2) 400 Robots Destroyed (23) 115 Value Destroyed (538) 538 Prototype IDs (15) 300 Alien Tech Used (0) 0 Bonus (0) 0 TOTAL SCORE: 1353 Bonus ------- None Cogmind --------- Core Integrity 0/250 Matter 260/300 Energy 199/200 System Corruption 0% Temperature Cool (0) Movement Rolling (120) Ox1 Location -10/Subcaves Parts ------- > --- POWER (1) -------- Subdweller Power Source > --- PROPULSION (2) --- Subdweller Monowheel > --- UTILITY (3) ------ Medium Storage Unit Structural Scanner Targeting Computer > --- WEAPON (2) ------- Subdweller Shrapnel Launcher > --- INVENTORY (10) --- Light Ion Engine Flightbrick Heat Sink Disposable Heat Sink Improved Medium Laser Improved Medium Laser Heavy Hammer Peak State ------------ > --- POWER ------------ Subdweller Power Source > --- PROPULSION ------- Subdweller Monowheel Subdweller Monowheel > --- UTILITY ---------- Medium Storage Unit Structural Scanner Targeting Computer > --- WEAPON ----------- Improved Medium Laser Heavy Hammer > --- INVENTORY -------- Light Ion Engine Flightbrick Heat Sink Disposable Heat Sink Improved Medium Laser Improved Medium Laser Subdweller Shrapnel Launcher [Rating: 18] Favorites ----------- Power Ion Engine Engine Ion Engine Propulsion Aluminum Leg Leg Aluminum Leg Wheel Subdweller Monowheel Utility Medium Storage Unit Device Structural Scanner Storage Medium Storage Unit Processor Targeting Computer Weapon Improved Medium Laser Energy Gun Improved Medium Laser Ballistic Gun Assault Rifle Launcher Subdweller Shrapnel Launcher Impact Weapon Heavy Hammer Build | -11 -10 -10 ------- Run | Yrd Mat Sub Slots Evolved 1 | . 1 . Power . | . . . Propulsion . | . . . Utility 1 | . 1 . Weapon . | . . . Parts Attached 21 | 7 3 11 Power 4 | 1 . 3 Engine 4 | 1 . 3 Core . | . . . Reactor . | . . . Propulsion 4 | 2 . 2 Treads . | . . . Leg 2 | 2 . . Wheel 2 | . . 2 Hover . | . . . Flight . | . . . Utility 3 | 2 1 . Device 1 | 1 . . Storage 1 | 1 . . Processor 1 | . 1 . Hackware . | . . . Protection . | . . . Artifact . | . . . Weapon 10 | 2 2 6 Energy Gun 4 | . 2 2 Energy Cannon . | . . . Ballistic Gun 2 | 2 . . Ballistic Cannon . | . . . Launcher 3 | . . 3 Special Weapon . | . . . Impact Weapon 1 | . . 1 Slashing Weapon . | . . . Piercing Weapon . | . . . Special Melee Weapon . | . . . Unidentified Prototypes 1 | . 1 . Parts Lost 4 | . . 4 Power 1 | . . 1 Propulsion 2 | . . 2 Utility . | . . . Weapon 1 | . . 1 Highest Loss Streak 2 | . . 2 To Critical Strikes . | . . . Average Slot Usage (%) 97 | . 96 98 Engine 12 | . 12 12 Leg 22 | . 25 20 Wheel 1 | . . 2 Device 12 | . 12 12 Storage 12 | . 12 12 Processor 10 | . 8 12 Energy Gun 15 | . 6 21 Ballistic Gun 7 | . 18 . Impact Weapon 1 | . . 2 Naked Turns . | . . . Heaviest Build 27 | 20 22 27 Greatest Support 40 | 20 20 40 Greatest Overweight (x) 2 | 1 1 2 Average Overweight (x) . | . . . Largest Inventory Capacity 10 | 10 10 10 Average Capacity 9 | 8 10 10 Most Carried 10 | 1 7 10 Average Carried 6 | . 2 9 Final Capacity 10 | 10 10 10 Final Carried 10 | 1 7 10 Class Distribution -------------------- 100% | Hacker-Mutant Dominant Class ---------------- Hacker-Mutant | -10/Materials Hacker-Mutant | -10/Subcaves Resources | -11 -10 -10 ----------- Run | Yrd Mat Sub Matter Collected 632 | 244 248 140 Remotely . | . . . Salvage Created 707 | . 428 279 Parts 52 | . 27 25 Haulers Intercepted 2 | . 2 . Recyclers Shooed 1 | . 1 . Parts Field Recycled . | . . . Retrieved Matter . | . . . Parts Self-Destructed . | . . . Prevented . | . . . Kills | -11 -10 -10 ------- Run | Yrd Mat Sub Combat Hostiles Destroyed 16 | . 8 8 Guns 15 | . 8 7 AOE 1 | . . 1 Classes Destroyed 7 | . 6 1 Worker 1 | . 1 . Hauler 2 | . 2 . Recycler 1 | . 1 . Watcher 3 | . 3 . Swarmer 5 | . 4 1 Grunt 4 | . 4 . Subdweller 7 | . . 7 Best Kill Streak 4 | . 4 2 Combat Bots Only 2 | . 2 2 Max Kills in Single Turn 1 | . 1 1 Gunslinging . | . . . Exploded 1 | . . 1 Melee . | . . . Uniques/NPCs Destroyed . | . . . Combat | -11 -10 -10 -------- Run | Yrd Mat Sub Hostile Shots Fired 114 | . 39 75 Missed 29 | . 9 20 Damage Taken 1004 | . 192 812 Core 262 | . 15 247 Absorbed by Shields . | . . . Ignored by Resistances 586 | . 126 460 Core Remaining (%) 100 | 100 . . Volleys Fired 82 | . 35 47 Largest 2 | . 2 2 Hottest 112 | . 112 112 Shots Fired 128 | . 70 58 Gun 124 | . 70 54 Cannon . | . . . Launcher 4 | . . 4 Special . | . . . Kinetic 68 | . 64 4 Thermal 60 | . 6 54 Explosive . | . . . Electromagnetic . | . . . Robot Hit Streak 79 | . 26 79 Robot Miss Streak 1 | . 1 . Penetration Max . | . . . Secondary Targets 1 | . . 1 Max Gunslinging Chain 1 | . . 1 Shots Hit Robots 112 | . 59 53 Core Hits 39 | . 23 16 Critical Kills . | . . . Critical Parts Destroyed . | . . . Critical Strikes 5 | . . 5 Burn 5 | . . 5 Melee Attacks 2 | . . 2 Impact 2 | . . 2 Slashing . | . . . Piercing . | . . . Sneak Attacks . | . . . Combat Hostiles . | . . . Follow-up Attacks . | . . . Damage Inflicted 1781 | . 792 989 Guns 1635 | . 792 843 Cannons . | . . . Explosions 146 | . . 146 Melee . | . . . Ramming . | . . . Kinetic 854 | . 708 146 Thermal 927 | . 84 843 Explosive . | . . . Electromagnetic . | . . . Impact . | . . . Slashing . | . . . Piercing . | . . . Highest Corruption . | . . . Average Corruption . | . . . Corruption Purged . | . . . Corruption Blocked . | . . . Overload Shots . | . . . Overflow Damage . | . . . Projectiles . | . . . Explosions . | . . . Melee . | . . . Knockbacks . | . . . Impact . | . . . Kinetic . | . . . Secondary . | . . . Self-Inflicted Damage 67 | . . 67 Shots 2 | . . 2 Rammed . | . . . Targets Rammed . | . . . Kicked . | . . . Crushed . | . . . Highest Temperature 102 | . 102 21 Average Temperature 22 | . 29 7 Received Heat Transfer 324 | . 105 219 Siege Activations . | . . . Robots Corrupted . | . . . Combat Hostiles . | . . . Parts Fried . | . . . Impact Corruptions . | . . . Robots Melted . | . . . Combat Hostiles . | . . . Parts Melted 4 | . . 4 Heat Transferred 2368 | . 185 2183 Parts Sabotaged . | . . . Parts Stolen . | . . . Parts Stripped . | . . . Power Chain Reactions . | . . . Alert | -11 -10 -10 ------- Run | Yrd Mat Sub Peak Influence 195 | . 195 . Initial . | . . . Average 29 | . 31 . Maximum Alert Level . | . . . Low Security (%) 100 | 100 100 . Level 1 . | . . . Level 2 . | . . . Level 3 . | . . . Level 4 . | . . . Level 5 . | . . . High Security . | . . . Max Security . | . . . Squads Dispatched 2 | . 2 . Investigation 2 | . 2 . Extermination . | . . . Reinforcement . | . . . Assault . | . . . Garrison . | . . . Intercept . | . . . Searches Triggered . | . . . Construction Impeded . | . . . Haulers Reinforced . | . . . Active Scanning Responses . | . . . Cargo Convoy Interrupts . | . . . Stealth | -11 -10 -10 --------- Run | Yrd Mat Sub Distress Signals 1 | . 1 . Communications Jammed . | . . . Distress Signals . | . . . Times Spotted 24 | . 12 12 Peak Tracking Total 4 | . 2 4 Tactical Retreats . | . . . Traps | -11 -10 -10 ------- Run | Yrd Mat Sub Traps Triggered 1 | . . 1 Indirectly . | . . . Trap Hack Attempts . | . . . Triggered . | . . . Disarmed . | . . . Reprogrammed 9 | . 9 . Reused . | . . . Traps Extracted . | . . . Installed . | . . . Triggered . | . . . Machines | -11 -10 -10 ---------- Run | Yrd Mat Sub Machines Disabled 1 | . . 1 Max in Single Turn 1 | . . 1 Machines Repaired . | . . . Machines Dismantled . | . . . Machines Sabotaged . | . . . Overloaded Fab Kills . | . . . Hacking | -11 -10 -10 --------- Run | Yrd Mat Sub Machines Accessed 10 | . 8 2 Terminals 7 | . 7 . Fabricators . | . . . Repair Stations . | . . . Recycling Units 1 | . 1 . Scanalyzers . | . . . Garrison Access . | . . . Total Hacks 35 | . 24 11 Successful 29 | . 18 11 Failed 6 | . 6 . Catastrophic 1 | . 1 . Database Lockouts . | . . . Manual 12 | . 12 . Terminals 22 | . 22 . Fabricators . | . . . Repair Stations . | . . . Recycling Units 2 | . 2 . Scanalyzers . | . . . Garrison Access . | . . . Terminal Hacks 22 | . 11 11 Record 10 | . . 10 Prototype ID Bank 2 | . 2 . Alert Level 1 | . 1 . Locate Traps 3 | . 3 . Reprogram Traps 2 | . 2 . Patrol Status 1 | . 1 . Recall Investigation 1 | . 1 . Zone Layout 1 | . 1 . Derelict Proto ID Bank 1 | . . 1 Fabricator Hacks . | . . . Repair Station Hacks . | . . . Recycling Unit Hacks 1 | . 1 . Retrieve Components 1 | . 1 . Scanalyzer . | . . . Garrison Access Hacks . | . . . Unauthorized Hacks 6 | . 6 . Terminals 6 | . 6 . Botnet 6 | . 6 . Fabricators . | . . . Repair Stations . | . . . Recycling Units . | . . . Scanalyzers . | . . . Garrison Access . | . . . Data Cores Recovered . | . . . Used . | . . . Hacking Detections 5 | . 5 . Full Trace Events 2 | . 2 . Feedback Events . | . . . Feedback Blocked . | . . . Robot Schematics Acquired . | . . . Robots Built . | . . . Authchips . | . . . Time . | . . . Total Robot Build Rating . | . . . Part Schematics Acquired . | . . . Parts Built . | . . . Authchips . | . . . Time . | . . . Total Part Build Rating . | . . . Parts Repaired . | . . . Time . | . . . Parts Recycled . | . . . Recycled Matter . | . . . Retrieved Matter . | . . . Retrieved Components 10 | . 10 . Parts Scanalyzed . | . . . Part Schematics Acquired . | . . . Parts Damaged . | . . . Bothacking | -11 -10 -10 ------------ Run | Yrd Mat Sub Used RIF Installer . | . . . Robots Hacked . | . . . Non-combat . | . . . Combat . | . . . Robot Hacks Applied . | . . . Relay Couplers Released . | . . . Fabnet Peak Effective % . | . . . Robots Rewired . | . . . Allies Hacked . | . . . Hacks Repelled . | . . . Allies | -11 -10 -10 -------- Run | Yrd Mat Sub Total Allies . | . . . Largest Group . | . . . Highest-Rated Group . | . . . Highest-Rated Ally . | . . . Total Orders . | . . . Ally Attacks . | . . . Total Damage . | . . . Kills . | . . . Allies Corrupted . | . . . Allies Melted . | . . . Intel | -11 -10 -10 ------- Run | Yrd Mat Sub Robot Analysis Total . | . . . Derelict Logs Recovered 2 | . . 2 Drone Launches . | . . . Drone Recoveries . | . . . Exploration | -11 -10 -10 ------------- Run | Yrd Mat Sub Turns Passed 2984 | 63 1166 1755 Spaces Moved 1955 | 44 748 1163 Core 3 | 3 . . Treads . | . . . Legs 1802 | 41 748 1013 Wheels 150 | . . 150 Hover . | . . . Flight . | . . . Fastest Speed 50 | 50 120 110 Average Speed 135 | 118 132 137 Slowest Speed 260 | 190 190 260 Overloaded Moves . | . . . Propulsion Burnouts . | . . . Robots Hopped . | . . . Cave-ins Triggered . | . . . Exploration Rate (%) 51 | 4 91 60 Regions Visited 2 Branch Regions 1 Pre-discovered Areas 1 | . . 1 Known Exits Taken 2 | 1 1 . Unknown Exits Taken . | . . . Scrap Searched 8 | . . 8 Spaces Dug . | . . . Terrain Destroyed 50 | . . 50 Melee . | . . . Projectile . | . . . AOE 50 | . . 50 Terrain Rammed . | . . . Walls Destroyed . | . . . Machines Disabled . | . . . Actions | -11 -10 -10 --------- Run | Yrd Mat Sub Total 2157 | 51 855 1251 Wait 75 | . 61 14 Move 1953 | 43 747 1163 Hop . | . . . Pick Up 13 | 1 6 6 Fast Attach 12 | 7 3 2 Attach 1 | . . 1 Detach 1 | . 1 . Swap 8 | . . 8 Drop 10 | . 2 8 Fire 82 | . 35 47 Melee 2 | . . 2 Ram . | . . . Kick . | . . . Crush . | . . . Escape Stasis . | . . . Rewire . | . . . Trap . | . . . Miscellaneous . | . . . Route ------- -11/Scrapyard -10/Materials (discovered 3 exits: *Mat / *Min / *Sub) -10/Subcaves (discovered 3 exits: *Mat x2 / Rec) History --------- Turn | Location | Event 9 | -11/Scrapyard | Identified exit to Materials 9 | -11/Scrapyard | Discovered exit to Materials (range 15) 64 | -11/Scrapyard | Entered Materials 64 | -10/Materials | Evolved 1 slot: Utility x1 312 | -10/Materials | Build established: Hacker-Mutant 577 | -10/Materials | Identified exit to Materials 577 | -10/Materials | Discovered exit to Materials (range 11) 758 | -10/Materials | Identified exit to Mines 758 | -10/Materials | Discovered exit to Mines (range 13) 1194 | -10/Materials | Identified exit to Subcaves 1194 | -10/Materials | Discovered exit to Subcaves (range 7) 1230 | -10/Materials | Entered Subcaves 1345 | -10/Subcaves | Identified exit to Materials 1345 | -10/Subcaves | Discovered exit to Materials (range 9) 1720 | -10/Subcaves | Identified exit to Recycling 1781 | -10/Subcaves | Shifting Twisted Machinery released Mak. System Shield 1840 | -10/Subcaves | Shifting Twisted Machinery released Battle Rifle 2075 | -10/Subcaves | Learned Materials terminal intel 2196 | -10/Subcaves | Visited Clippyterm 2200 | -10/Subcaves | Learned Factory stockpile data 2266 | -10/Subcaves | Discovered exit to Materials (range 5) 2273 | -10/Subcaves | Learned location of Zion (-6) 2273 | -10/Subcaves | Met a Zionite searching for "candidates" 2555 | -10/Subcaves | Visited 4L-MR0's lab 2571 | -10/Subcaves | Found Flightbrick 2882 | -10/Subcaves | Disturbed a concealed Subdweller 2947 | -10/Subcaves | Core integrity fell below 50% 2968 | -10/Subcaves | Core integrity fell below 20% 2977 | -10/Subcaves | Ambushed by Subdweller buried in earth 2985 | -10/Subcaves | Destroyed by SL-GAJ(R) with Subdweller Machine Gun Last Messages --------------- 02870_ Found 17 Matter. 02882_ DE-3JM(R) angrily emerges from the Twisted Machinery. 02883_ DE-3JM(R) suffers critical hit (Burn). 02888_ DE-3JM(R) affixes Scrap Shield Fragment to Scrap Shield. 02889_ Sub. Monowheel melted. 02889_ DE-3JM(R) destroyed. 02890_ Sub. Power Source shoots sparks and powers down. 02897_ Dropped Broken Sub. Power Source. 02910_ Acquired 10 matter. T4-6MV(R) emerges from concealment. IN-WFN(R) emerges from concealment. 02977_ T4-6MV(R) destroyed. 02978_ FH-MY0(R): "HIDIE!" 02978_ Imp. Medium Laser destroyed. 02980_ Sub. Monowheel destroyed. 02984_ SL-GAJ(R) affixes Scrap Shield Fragment to Scrap Shield. Map ----- +----------------------------------------------------+ | ?????????????????????????#################### # | | ?????????????????????????## ################ | | ?????????????????????????## ## # # ### | | ?????????????????########## #### | | ????????????????########### ### | | ????????????????###%#=### # # # ### | | ????????????????##%[%&%# ########## # | | ????????????????####["## ####### # | | ????????????????###][### ##??### # # # # | | ???????????????#####]# # ######??############ | | ???????????????### "%" ##########???########### | | ???????????????## *%! #######?????????????????? | | ???????????????### ![ ###?????????????????????? | | ???????????????#### ####??????????????????????? | | ????????????????### #####??????????????????????? | | ???????????????### ##??????????????????????? | | ???????????????### ###??????????????????????? | | ???????????????## ##??????????????????????? | | ???????????????### # #####????????????????????? | | ???????????????### ## #####???????????????????? | | ????????????????###### ## ###???????????????????? | | ??????????????####### ##???????????????????? | | ??????????????######## # ###???????????????????? | | ??????????????## ## # ###???????????????????? | | ??????????????## ##???????????????????? | | ??????????????## @ ######????????????????? | | ??????????????## #######???????????????? | | ??????????????##### ; ####??????????????? | | ??????????????##### ###??????????????? | | ?????????????????### ##??????????????? | | ?????????????????### ##??????????????? | | ???????????????##### & ###??????????????? | | ??????????????### ## R%& #####????????????? | | ?????????????### ;;######????????????? | | ?????????????## ##????????????? | | ?????????????## ^ ;; ##????????????? | | ?????????????### ^ #; ####??????????? | | ?????????????### ##??????????? | | ?????????????## R ##??????????? | | ?????????????### ##"" ^## ^ ##??????????? | | ?????????????########## " ##"""###??????????? | | ??????????????########" "" ###"""##??????????? | | ????????????????????# " "" ###""""##??????????? | | ????????????????????# " "" ### ???###??????????? | | ????????????????????###" #####?????????????????? | | ????????????????????#### #####??????????????????? | | ????????????????????????? ##?????????????????????? | | ?????????????????????????????????????????????????? | | ?????????????????????????????????????????????????? | | ?????????????????????????????????????????????????? | +----------------------------------------------------+ Best States ------------- Heat Dissipation 25 Energy Generation 15 Energy Capacity 250 Matter Stores 300 Matter Capacity 300 Sight Range 16 Terrain Scan Density 10 Resistance: KI 35 Resistance: TH 35 Resistance: EX 35 Resistance: EM 35 Resistance: I 35 Resistance: S 35 Resistance: P 35 Evasion (%) 55 Targeting Accuracy 5 Offensive Hacking 20 Item Schematics ----------------- None Robot Schematics ------------------ None Fabricated ------------ Nothing Alien Tech Used ----------------- None Achievements -------------- None Challenges ------------ None Game ------ Seed ComponentCoolantBox Manual? 0 Play Time 00:18:58 Cumulative 45.8 hours Start 2024.05.26 @ 09:45:34 End 2024.05.27 @ 10:26:00 Sessions 2 Manual Loads 0 Difficulty Explorer Special Mode None Game No. 22 Rogue 0 Adventurer 19 Explorer 3 Win Type - Total 1 Types 1/0/0/0/0/0/0/0/0 Lore% 28 Gallery% 44 Achievement% 36 Wizard Run 0 Options --------- Layout 1 ASCII 0 Keyboard 0 Movement Mouse Keybinds 0 Fullscreen 0 Font 28/SmallcapsGlow Map View 50x40 Zoom Use 0% Tactical HUD 1 Map Filters NONE Filters NONE Steam 1 RUN: e5e6a931-2102-474e-a953-4a7ea4738f3d